[Event "*** SCC Grand Prix: Titled Tuesday Blitz"]
[Site "Chess.com"]
[Date "2020.10.13"]
[Round "7"]
[White "JoakimVonAnd"]
[Black "NikolaGry"]
[Result "0-1"]
[WhiteElo "2488"]
[BlackElo "2636"]
[TimeControl "180+1"]
[EndTime "11:17:45 PDT"]
[Termination "NikolaGry won by resignation"]

1. d4 {[%clk 0:03:00.9]} 1... d5 {[%clk 0:02:58.3]} 2. Bf4 {[%clk 0:02:59.7]}
2... c6 {[%clk 0:02:57.7]} 3. e3 {[%clk 0:02:59.8]} 3... Qb6 {[%clk 0:02:57.8]}
4. Qc1 {[%clk 0:02:57.6]} 4... Bf5 {[%clk 0:02:56.8]} 5. Nf3 {[%clk 0:02:54]}
5... Nd7 {[%clk 0:02:55.3]} 6. Bd3 {[%clk 0:02:53.9]} 6... Bxd3 {[%clk
0:02:54.2]} 7. cxd3 {[%clk 0:02:54.8]} 7... e6 {[%clk 0:02:53.4]} 8. O-O {[%clk
0:02:54.7]} 8... Ngf6 {[%clk 0:02:52.8]} 9. h3 {[%clk 0:02:52.8]} 9... Be7
{[%clk 0:02:51.5]} 10. Nc3 {[%clk 0:02:51.7]} 10... O-O {[%clk 0:02:50.8]} 11.
Ne5 {[%clk 0:02:51.8]} 11... Rac8 {[%clk 0:02:42.5]} 12. Qd2 {[%clk 0:02:50.3]}
12... Nxe5 {[%clk 0:02:37.2]} 13. dxe5 {[%clk 0:02:49.2]} 13... Nd7 {[%clk
0:02:37.3]} 14. Bh2 {[%clk 0:02:48.7]} 14... c5 {[%clk 0:02:30.9]} 15. f4 {[%clk
0:02:46]} 15... g6 {[%clk 0:02:21.4]} 16. g4 {[%clk 0:02:38.8]} 16... f6 {[%clk
0:02:06.5]} 17. exf6 {[%clk 0:02:35.3]} 17... Bxf6 {[%clk 0:02:04.8]} 18. f5
{[%clk 0:02:33.6]} 18... Rce8 {[%clk 0:01:38.1]} 19. Rae1 {[%clk 0:02:23.6]}
19... Be5 {[%clk 0:00:58.2]} 20. fxe6 {[%clk 0:02:05.5]} 20... Qxe6 {[%clk
0:00:55.8]} 21. Rxf8+ {[%clk 0:01:55.7]} 21... Rxf8 {[%clk 0:00:54.9]} 22. Qg2
{[%clk 0:01:51.1]} 22... Bxh2+ {[%clk 0:00:46.6]} 23. Kxh2 {[%clk 0:01:52]}
23... Ne5 {[%clk 0:00:43.8]} 24. Rf1 {[%clk 0:01:45]} 24... Rxf1 {[%clk
0:00:24.5]} 25. Qxf1 {[%clk 0:01:42.4]} 25... c4 {[%clk 0:00:20.2]} 26. d4
{[%clk 0:01:08]} 26... Nd3 {[%clk 0:00:20.2]} 27. Qf3 {[%clk 0:01:06.6]} 27...
Nxb2 {[%clk 0:00:17.6]} 28. Nxd5 {[%clk 0:01:06.5]} 28... Nd3 {[%clk 0:00:16.2]}
29. g5 {[%clk 0:01:05.6]} 29... Kg7 {[%clk 0:00:15]} 30. Nf6 {[%clk 0:01:02.4]}
30... Qb6 {[%clk 0:00:14.7]} 31. Kg3 {[%clk 0:00:35.1]} 31... Qd6+ {[%clk
0:00:12.5]} 32. Kh4 {[%clk 0:00:30.6]} 32... Qe7 {[%clk 0:00:12.7]} 33. Qd5
{[%clk 0:00:26]} 33... Qf7 {[%clk 0:00:09]} 34. Qe4 {[%clk 0:00:24.1]} 34... h6
{[%clk 0:00:08.2]} 35. gxh6+ {[%clk 0:00:12]} 35... Kxf6 {[%clk 0:00:06.8]} 36.
d5 {[%clk 0:00:11.8]} 36... g5+ {[%clk 0:00:06]} 37. Kg3 {[%clk 0:00:11.6]}
37... Ne5 {[%clk 0:00:05.7]} 38. h7 {[%clk 0:00:11]} 38... Ng6 {[%clk 0:00:06]}
39. Qd4+ {[%clk 0:00:08.5]} 39... Ke7 {[%clk 0:00:06.3]} 40. h8=Q {[%clk
0:00:08.7]} 40... Nxh8 {[%clk 0:00:06.5]} 41. Qxh8 {[%clk 0:00:09.6]} 41... Qxd5
{[%clk 0:00:07.1]} 42. Qg7+ {[%clk 0:00:09.1]} 42... Kd6 {[%clk 0:00:07.5]} 43.
Qf6+ {[%clk 0:00:08.5]} 43... Kc5 {[%clk 0:00:07.8]} 44. Kf2 {[%clk 0:00:05.6]}
44... b5 {[%clk 0:00:07.2]} 45. Qe7+ {[%clk 0:00:04.8]} 45... Kb6 {[%clk
0:00:06.5]} 46. Ke1 {[%clk 0:00:02.9]} 46... c3 {[%clk 0:00:05.2]} 47. Qg7
{[%clk 0:00:03.8]} 47... Qd2+ {[%clk 0:00:04.5]} 48. Kf1 {[%clk 0:00:03.6]}
48... c2 {[%clk 0:00:04.9]} 49. Qf6+ {[%clk 0:00:04.2]} 49... Ka5 {[%clk
0:00:04.7]} 50. Qd8+ {[%clk 0:00:04.8]} 50... Qxd8 {[%clk 0:00:04]} 0-1

[Event "*** SCC Grand Prix: Titled Tuesday Blitz"]
[Site "Chess.com"]
[Date "2020.10.13"]
[Round "7"]
[White "exoticprincess"]
[Black "Gloomy_Wanderer"]
[Result "0-1"]
[WhiteElo "2866"]
[BlackElo "2775"]
[TimeControl "180+1"]
[EndTime "11:17:52 PDT"]
[Termination "Gloomy_Wanderer won on time"]

1. b3 {[%clk 0:03:00.9]} 1... d5 {[%clk 0:02:59]} 2. Bb2 {[%clk 0:03:00.3]} 2...
c5 {[%clk 0:02:58.9]} 3. e3 {[%clk 0:02:59.5]} 3... Nc6 {[%clk 0:02:58.5]} 4.
Bb5 {[%clk 0:02:57.9]} 4... Nf6 {[%clk 0:02:58.6]} 5. h3 {[%clk 0:02:55]} 5...
Qc7 {[%clk 0:02:57.3]} 6. Nf3 {[%clk 0:02:54.4]} 6... Bf5 {[%clk 0:02:56.4]} 7.
O-O {[%clk 0:02:52.1]} 7... e6 {[%clk 0:02:56.4]} 8. d3 {[%clk 0:02:52.1]} 8...
Bd6 {[%clk 0:02:55.8]} 9. Nbd2 {[%clk 0:02:52.1]} 9... O-O {[%clk 0:02:55.7]}
10. Bxc6 {[%clk 0:02:50.6]} 10... bxc6 {[%clk 0:02:50.5]} 11. Re1 {[%clk
0:02:45.2]} 11... Bg6 {[%clk 0:02:39.5]} 12. e4 {[%clk 0:02:43.7]} 12... Bf4
{[%clk 0:02:37.2]} 13. e5 {[%clk 0:02:40.4]} 13... Nd7 {[%clk 0:02:32.4]} 14.
Nf1 {[%clk 0:02:38.9]} 14... Rae8 {[%clk 0:02:15.5]} 15. g3 {[%clk 0:02:24]}
15... Bh6 {[%clk 0:02:15]} 16. N1h2 {[%clk 0:02:23.8]} 16... f5 {[%clk
0:02:05.2]} 17. Nh4 {[%clk 0:02:05.6]} 17... f4 {[%clk 0:01:35.6]} 18. Nxg6
{[%clk 0:01:52.2]} 18... fxg3 {[%clk 0:01:28.2]} 19. Nxf8 {[%clk 0:01:45.3]}
19... gxh2+ {[%clk 0:01:28.4]} 20. Kxh2 {[%clk 0:01:44.3]} 20... Rxf8 {[%clk
0:01:29.3]} 21. Kg2 {[%clk 0:01:37.9]} 21... Rf5 {[%clk 0:01:19.3]} 22. h4
{[%clk 0:01:23.9]} 22... Qd8 {[%clk 0:00:48.3]} 23. Qg4 {[%clk 0:01:22.3]} 23...
Qf8 {[%clk 0:00:47.1]} 24. Re2 {[%clk 0:01:17.7]} 24... Qf7 {[%clk 0:00:46.1]}
25. Rg1 {[%clk 0:01:09.9]} 25... Bf4 {[%clk 0:00:41.1]} 26. Rge1 {[%clk
0:00:52.5]} 26... d4 {[%clk 0:00:35.3]} 27. Kh1 {[%clk 0:00:44.9]} 27... Nxe5
{[%clk 0:00:33.9]} 28. Qh3 {[%clk 0:00:44.9]} 28... Qh5 {[%clk 0:00:26.2]} 29.
Ba3 {[%clk 0:00:30.6]} 29... Nf3 {[%clk 0:00:19.2]} 30. Rf1 {[%clk 0:00:27.4]}
30... g5 {[%clk 0:00:14.8]} 31. Kg2 {[%clk 0:00:06.6]} 31... Nxh4+ {[%clk
0:00:13.3]} 32. Kh1 {[%clk 0:00:05.3]} 32... g4 {[%clk 0:00:13.3]} 33. Rg1
{[%clk 0:00:03]} 33... Ng6 {[%clk 0:00:05.3]} 34. Qxh5 {[%clk 0:00:02.2]} 34...
Rxh5+ {[%clk 0:00:05.9]} 35. Kg2 {[%clk 0:00:03.1]} 35... Kf7 {[%clk 0:00:04.3]}
36. Kf1 {[%clk 0:00:02.6]} 36... Rg5 {[%clk 0:00:04.6]} 37. Re4 {[%clk
0:00:01.8]} 37... h5 {[%clk 0:00:04.2]} 38. Ke2 {[%clk 0:00:02.3]} 38... Rf5
{[%clk 0:00:04.6]} 39. Rh1 {[%clk 0:00:03]} 39... e5 {[%clk 0:00:04.5]} 40. Bc1
{[%clk 0:00:03.9]} 40... Bxc1 {[%clk 0:00:04.2]} 41. Rxc1 {[%clk 0:00:04.8]}
41... Nf4+ {[%clk 0:00:04.7]} 42. Kd2 {[%clk 0:00:05.3]} 42... Nd5 {[%clk
0:00:05.1]} 43. Rce1 {[%clk 0:00:05.4]} 43... Kf6 {[%clk 0:00:04.4]} 44. Rh1
{[%clk 0:00:05.3]} 44... Rxf2+ {[%clk 0:00:04]} 45. Ke1 {[%clk 0:00:05.6]} 45...
Rf5 {[%clk 0:00:04.9]} 46. Re2 {[%clk 0:00:04.8]} 46... Nf4 {[%clk 0:00:05]} 47.
Reh2 {[%clk 0:00:04.3]} 47... Kg5 {[%clk 0:00:04.9]} 48. Kd2 {[%clk 0:00:04.5]}
48... g3 {[%clk 0:00:05]} 49. Rg1 {[%clk 0:00:04.6]} 49... h4 {[%clk 0:00:04.9]}
50. Rhh1 {[%clk 0:00:04.8]} 50... Kg4 {[%clk 0:00:05.3]} 51. Re1 {[%clk
0:00:04.9]} 51... h3 {[%clk 0:00:05.5]} 52. Reg1 {[%clk 0:00:03.3]} 52... g2
{[%clk 0:00:05.5]} 53. Rh2 {[%clk 0:00:03.7]} 53... Kg3 {[%clk 0:00:06]} 0-1

[Event "*** SCC Grand Prix: Titled Tuesday Blitz"]
[Site "Chess.com"]
[Date "2020.10.13"]
[Round "7"]
[White "Rozum_Ivan"]
[Black "Smirnov_Pavel"]
[Result "0-1"]
[WhiteElo "2741"]
[BlackElo "2843"]
[TimeControl "180+1"]
[EndTime "11:17:55 PDT"]
[Termination "Smirnov_Pavel won by checkmate"]

1. g3 {[%clk 0:03:00.9]} 1... Nf6 {[%clk 0:02:59.2]} 2. Bg2 {[%clk 0:03:00.5]}
2... d5 {[%clk 0:03:00.1]} 3. d3 {[%clk 0:02:57.5]} 3... c5 {[%clk 0:02:53]} 4.
e4 {[%clk 0:02:56.8]} 4... Nc6 {[%clk 0:02:32.6]} 5. Nc3 {[%clk 0:02:54.7]} 5...
dxe4 {[%clk 0:02:28]} 6. Nxe4 {[%clk 0:02:52.3]} 6... Nxe4 {[%clk 0:02:18]} 7.
Bxe4 {[%clk 0:02:44.2]} 7... Bd7 {[%clk 0:02:14.1]} 8. h4 {[%clk 0:02:40]} 8...
e6 {[%clk 0:02:10]} 9. Nh3 {[%clk 0:02:39.8]} 9... Be7 {[%clk 0:02:08.9]} 10.
O-O {[%clk 0:02:39.1]} 10... O-O {[%clk 0:01:56.3]} 11. Qh5 {[%clk 0:02:34.2]}
11... f5 {[%clk 0:01:48.3]} 12. Bg2 {[%clk 0:02:28]} 12... Bf6 {[%clk
0:01:37.7]} 13. c3 {[%clk 0:02:25.8]} 13... Ne5 {[%clk 0:01:25.9]} 14. Qd1
{[%clk 0:02:05.8]} 14... Bc6 {[%clk 0:01:19.7]} 15. Nf4 {[%clk 0:01:57.9]} 15...
Bxg2 {[%clk 0:01:17.2]} 16. Kxg2 {[%clk 0:01:58.8]} 16... Qd7 {[%clk 0:01:13.6]}
17. d4 {[%clk 0:01:57.7]} 17... cxd4 {[%clk 0:01:10.1]} 18. cxd4 {[%clk
0:01:58.6]} 18... Nc4 {[%clk 0:00:50]} 19. d5 {[%clk 0:01:37.4]} 19... e5 {[%clk
0:00:38.6]} 20. Ne6 {[%clk 0:01:33.5]} 20... Rf7 {[%clk 0:00:33.5]} 21. Bg5
{[%clk 0:01:27.1]} 21... Nb6 {[%clk 0:00:29.1]} 22. Bxf6 {[%clk 0:01:14]} 22...
Rxf6 {[%clk 0:00:30]} 23. Re1 {[%clk 0:01:13.1]} 23... e4 {[%clk 0:00:23.4]} 24.
Nf4 {[%clk 0:01:03.8]} 24... Rd6 {[%clk 0:00:23.5]} 25. Qb3 {[%clk 0:01:02.7]}
25... Kh8 {[%clk 0:00:21.4]} 26. Red1 {[%clk 0:01:01.2]} 26... Rd8 {[%clk
0:00:20.2]} 27. Rac1 {[%clk 0:00:59.8]} 27... h6 {[%clk 0:00:18.5]} 28. Rc5
{[%clk 0:00:52.4]} 28... Rc8 {[%clk 0:00:17.1]} 29. Rdc1 {[%clk 0:00:48.5]}
29... Rxc5 {[%clk 0:00:16.8]} 30. Rxc5 {[%clk 0:00:49.4]} 30... Kh7 {[%clk
0:00:17]} 31. h5 {[%clk 0:00:49.3]} 31... Qe7 {[%clk 0:00:15.7]} 32. Qc2 {[%clk
0:00:45.9]} 32... Qf7 {[%clk 0:00:14.6]} 33. Rc7 {[%clk 0:00:44.6]} 33... Rd7
{[%clk 0:00:14.9]} 34. Rxd7 {[%clk 0:00:44.9]} 34... Qxd7 {[%clk 0:00:15.8]} 35.
Qc5 {[%clk 0:00:43]} 35... Qf7 {[%clk 0:00:14.7]} 36. b3 {[%clk 0:00:41.4]}
36... Qd7 {[%clk 0:00:11]} 37. a4 {[%clk 0:00:40.5]} 37... Nc8 {[%clk
0:00:10.5]} 38. Qd4 {[%clk 0:00:33.5]} 38... Kg8 {[%clk 0:00:09.2]} 39. Qe5
{[%clk 0:00:28.3]} 39... Qf7 {[%clk 0:00:08.4]} 40. Qb8 {[%clk 0:00:24.7]} 40...
Qe8 {[%clk 0:00:08.1]} 41. Ng6 {[%clk 0:00:22.3]} 41... Kh7 {[%clk 0:00:07.2]}
42. Qxb7 {[%clk 0:00:16.9]} 42... e3 {[%clk 0:00:06.8]} 43. fxe3 {[%clk
0:00:13.8]} 43... Qe4+ {[%clk 0:00:06.5]} 44. Kh2 {[%clk 0:00:12.1]} 44... Qxe3
{[%clk 0:00:05.8]} 45. Nf4 {[%clk 0:00:03.8]} 45... Nd6 {[%clk 0:00:04.5]} 46.
Qd7 {[%clk 0:00:03.3]} 46... Qe5 {[%clk 0:00:01.9]} 47. Qe6 {[%clk 0:00:03]}
47... Qb2+ {[%clk 0:00:01.2]} 48. Kh3 {[%clk 0:00:03]} 48... Qa3 {[%clk
0:00:01.2]} 49. Qg6+ {[%clk 0:00:02.8]} 49... Kg8 {[%clk 0:00:01.8]} 50. Ne6
{[%clk 0:00:03.2]} 50... Qa1 {[%clk 0:00:02.1]} 51. Nxg7 {[%clk 0:00:01.7]}
51... Qh1# {[%clk 0:00:01.2]} 0-1

[Event "*** SCC Grand Prix: Titled Tuesday Blitz"]
[Site "Chess.com"]
[Date "2020.10.13"]
[Round "7"]
[White "Susal_De_Silva"]
[Black "Gabrielian_Artur"]
[Result "0-1"]
[WhiteElo "2472"]
[BlackElo "2795"]
[TimeControl "180+1"]
[EndTime "11:17:56 PDT"]
[Termination "Gabrielian_Artur won by checkmate"]

1. e4 {[%clk 0:03:00.9]} 1... c5 {[%clk 0:02:59.6]} 2. Nf3 {[%clk 0:03:00.8]}
2... d6 {[%clk 0:02:59.8]} 3. Bb5+ {[%clk 0:03:01.1]} 3... Nd7 {[%clk
0:02:59.6]} 4. O-O {[%clk 0:03:01]} 4... a6 {[%clk 0:02:59.8]} 5. Bd3 {[%clk
0:03:01.2]} 5... Ngf6 {[%clk 0:02:57.9]} 6. Re1 {[%clk 0:03:01.7]} 6... e6
{[%clk 0:02:52]} 7. a4 {[%clk 0:03:00.7]} 7... Be7 {[%clk 0:02:49.9]} 8. c3
{[%clk 0:03:00.9]} 8... b6 {[%clk 0:02:44.1]} 9. Bc2 {[%clk 0:03:00.7]} 9... Bb7
{[%clk 0:02:44.6]} 10. d4 {[%clk 0:03:01.3]} 10... cxd4 {[%clk 0:02:45]} 11.
cxd4 {[%clk 0:03:01.1]} 11... Rc8 {[%clk 0:02:45.6]} 12. Nc3 {[%clk 0:03:01.2]}
12... O-O {[%clk 0:02:45.2]} 13. h3 {[%clk 0:03:01.2]} 13... e5 {[%clk
0:02:32.9]} 14. dxe5 {[%clk 0:02:49.9]} 14... Nxe5 {[%clk 0:02:32.1]} 15. Bf4
{[%clk 0:02:40.6]} 15... Nc4 {[%clk 0:02:30.2]} 16. Nd5 {[%clk 0:02:22.8]} 16...
Nxd5 {[%clk 0:02:08.6]} 17. exd5 {[%clk 0:02:23.7]} 17... Bf6 {[%clk 0:02:08.3]}
18. Bf5 {[%clk 0:01:51.5]} 18... Nxb2 {[%clk 0:01:59.1]} 19. Qb3 {[%clk
0:01:32.6]} 19... Rc4 {[%clk 0:01:55.6]} 20. Be4 {[%clk 0:01:17.5]} 20... Rc3
{[%clk 0:01:28.8]} 21. Qxb2 {[%clk 0:00:57.9]} 21... Rxf3 {[%clk 0:01:27.9]} 22.
Qd2 {[%clk 0:00:58.5]} 22... Bc3 {[%clk 0:01:12.4]} 23. Qc2 {[%clk 0:00:48]}
23... Rxf4 {[%clk 0:01:05.8]} 24. Qxc3 {[%clk 0:00:47.7]} 24... Qg5 {[%clk
0:01:02.4]} 25. Qe3 {[%clk 0:00:28.3]} 25... Qf6 {[%clk 0:00:54]} 26. Rac1
{[%clk 0:00:20.9]} 26... Rh4 {[%clk 0:00:30.6]} 27. Qxb6 {[%clk 0:00:15.2]}
27... Bc8 {[%clk 0:00:26.4]} 28. Qe3 {[%clk 0:00:09.8]} 28... g6 {[%clk
0:00:25.7]} 29. Bf3 {[%clk 0:00:09.2]} 29... Bf5 {[%clk 0:00:24.3]} 30. Qc3
{[%clk 0:00:09]} 30... Qxc3 {[%clk 0:00:23.5]} 31. Rxc3 {[%clk 0:00:09.9]} 31...
Rxa4 {[%clk 0:00:23.7]} 32. Rc6 {[%clk 0:00:09.8]} 32... Rd8 {[%clk 0:00:23.9]}
33. Re7 {[%clk 0:00:09.2]} 33... a5 {[%clk 0:00:19.7]} 34. Rcc7 {[%clk
0:00:08.8]} 34... Rf8 {[%clk 0:00:20]} 35. g4 {[%clk 0:00:08.8]} 35... Bd3
{[%clk 0:00:19.2]} 36. Red7 {[%clk 0:00:08.1]} 36... Rd4 {[%clk 0:00:19]} 37.
Rxd6 {[%clk 0:00:07.6]} 37... a4 {[%clk 0:00:19.5]} 38. Ra7 {[%clk 0:00:07.4]}
38... Bc2 {[%clk 0:00:19.7]} 39. Rdd7 {[%clk 0:00:06.7]} 39... Bb3 {[%clk
0:00:20]} 40. d6 {[%clk 0:00:06.7]} 40... Be6 {[%clk 0:00:20.3]} 41. Rdc7 {[%clk
0:00:04.5]} 41... Rd8 {[%clk 0:00:20.3]} 42. d7 {[%clk 0:00:03.4]} 42... Bxd7
{[%clk 0:00:20]} 43. Kg2 {[%clk 0:00:03.3]} 43... Be8 {[%clk 0:00:20.2]} 44. Bc6
{[%clk 0:00:02.5]} 44... Bxc6+ {[%clk 0:00:19.6]} 45. Rxc6 {[%clk 0:00:03.4]}
45... Rf4 {[%clk 0:00:19.5]} 46. Rca6 {[%clk 0:00:03.8]} 46... Rd2 {[%clk
0:00:18.9]} 47. Rxa4 {[%clk 0:00:04]} 47... Rfxf2+ {[%clk 0:00:19.2]} 48. Kg1
{[%clk 0:00:04.9]} 48... Rfe2 {[%clk 0:00:18.4]} 49. Rf4 {[%clk 0:00:04.8]}
49... Rg2+ {[%clk 0:00:17.3]} 50. Kf1 {[%clk 0:00:04.6]} 50... Rh2 {[%clk
0:00:17.5]} 51. Kg1 {[%clk 0:00:01.9]} 51... Rdg2+ {[%clk 0:00:17.7]} 52. Kf1
{[%clk 0:00:01.8]} 52... Rb2 {[%clk 0:00:18.6]} 53. Kg1 {[%clk 0:00:02.2]} 53...
Rhg2+ {[%clk 0:00:17.6]} 54. Kf1 {[%clk 0:00:01.7]} 54... Rg3 {[%clk 0:00:18.3]}
55. Rfxf7 {[%clk 0:00:01.7]} 55... Rxh3 {[%clk 0:00:16.5]} 56. Rg7+ {[%clk
0:00:01.8]} 56... Kh8 {[%clk 0:00:17]} 57. Raf7 {[%clk 0:00:01.7]} 57... Rh1#
{[%clk 0:00:16.9]} 0-1

[Event "*** SCC Grand Prix: Titled Tuesday Blitz"]
[Site "Chess.com"]
[Date "2020.10.13"]
[Round "7"]
[White "blitzking1729"]
[Black "PlotnikovPavel"]
[Result "1-0"]
[WhiteElo "2547"]
[BlackElo "2374"]
[TimeControl "180+1"]
[EndTime "11:17:59 PDT"]
[Termination "blitzking1729 won by checkmate"]

1. e4 {[%clk 0:02:53.1]} 1... e5 {[%clk 0:02:59.4]} 2. Nf3 {[%clk 0:02:52.2]}
2... Nc6 {[%clk 0:02:59.3]} 3. Bc4 {[%clk 0:02:52.1]} 3... Nf6 {[%clk
0:02:58.6]} 4. O-O {[%clk 0:02:51.5]} 4... Nxe4 {[%clk 0:02:58.3]} 5. Re1 {[%clk
0:02:45.5]} 5... d5 {[%clk 0:02:57.4]} 6. Bb5 {[%clk 0:02:45.5]} 6... Bc5 {[%clk
0:02:55.9]} 7. d4 {[%clk 0:02:38]} 7... exd4 {[%clk 0:02:56.1]} 8. Nxd4 {[%clk
0:02:26.7]} 8... O-O {[%clk 0:02:55]} 9. Bxc6 {[%clk 0:02:23.1]} 9... bxc6
{[%clk 0:02:53.3]} 10. Be3 {[%clk 0:02:23.5]} 10... Qf6 {[%clk 0:02:46.2]} 11.
c3 {[%clk 0:02:18.5]} 11... Rb8 {[%clk 0:02:41.1]} 12. Qc2 {[%clk 0:02:11.3]}
12... Qg6 {[%clk 0:02:28.8]} 13. Nd2 {[%clk 0:02:01.1]} 13... Bxd4 {[%clk
0:02:23.1]} 14. Bxd4 {[%clk 0:01:52.7]} 14... Bf5 {[%clk 0:02:22.4]} 15. Nf3
{[%clk 0:01:43.8]} 15... c5 {[%clk 0:02:05.7]} 16. Nh4 {[%clk 0:01:40.4]} 16...
Qg4 {[%clk 0:01:42.6]} 17. Nxf5 {[%clk 0:01:37.7]} 17... Qxf5 {[%clk 0:01:43.5]}
18. Bxc5 {[%clk 0:01:37.1]} 18... Qg5 {[%clk 0:01:31]} 19. Bxf8 {[%clk
0:01:34.2]} 19... Rxf8 {[%clk 0:01:30.5]} 20. f3 {[%clk 0:01:22.6]} 20... Nd2
{[%clk 0:01:29.1]} 21. Kh1 {[%clk 0:01:18.3]} 21... Nc4 {[%clk 0:01:28.3]} 22.
Qf2 {[%clk 0:01:17.5]} 22... f5 {[%clk 0:01:26.3]} 23. Rad1 {[%clk 0:01:16.4]}
23... c6 {[%clk 0:01:26]} 24. b3 {[%clk 0:01:15.4]} 24... Nb6 {[%clk 0:01:23.7]}
25. a4 {[%clk 0:01:13.2]} 25... h6 {[%clk 0:01:23.1]} 26. a5 {[%clk 0:01:13.2]}
26... Nc8 {[%clk 0:01:23.1]} 27. Qc5 {[%clk 0:01:09.5]} 27... Qf6 {[%clk
0:01:21.4]} 28. c4 {[%clk 0:01:04.4]} 28... Kh8 {[%clk 0:01:09.9]} 29. cxd5
{[%clk 0:00:56.7]} 29... cxd5 {[%clk 0:01:10.8]} 30. Qxd5 {[%clk 0:00:53.7]}
30... Ne7 {[%clk 0:01:08.9]} 31. Qe6 {[%clk 0:00:42]} 31... Nc6 {[%clk
0:01:04.5]} 32. Qxf6 {[%clk 0:00:39.1]} 32... Rxf6 {[%clk 0:01:05.4]} 33. Rd5
{[%clk 0:00:37.4]} 33... Nb4 {[%clk 0:01:04.7]} 34. Rd7 {[%clk 0:00:35]} 34...
Ra6 {[%clk 0:00:59.9]} 35. h4 {[%clk 0:00:32.1]} 35... Rxa5 {[%clk 0:00:59.4]}
36. h5 {[%clk 0:00:31.3]} 36... f4 {[%clk 0:00:55.7]} 37. Re8+ {[%clk
0:00:27.2]} 37... Kh7 {[%clk 0:00:54.8]} 38. Ree7 {[%clk 0:00:24.6]} 38... Rxh5+
{[%clk 0:00:54.4]} 39. Kg1 {[%clk 0:00:25.1]} 39... Rg5 {[%clk 0:00:55.3]} 40.
Rxa7 {[%clk 0:00:25.1]} 40... Nd5 {[%clk 0:00:46.7]} 41. Re2 {[%clk 0:00:22.4]}
41... Ne3 {[%clk 0:00:44.8]} 42. Rb7 {[%clk 0:00:21.8]} 42... Rc5 {[%clk
0:00:41.1]} 43. Rd2 {[%clk 0:00:17.7]} 43... Rc1+ {[%clk 0:00:37.5]} 44. Kf2
{[%clk 0:00:17.5]} 44... Rf1+ {[%clk 0:00:24.4]} 45. Ke2 {[%clk 0:00:17.4]}
45... Rg1 {[%clk 0:00:23.8]} 46. b4 {[%clk 0:00:16.8]} 46... Rxg2+ {[%clk
0:00:22.9]} 47. Kd3 {[%clk 0:00:16.9]} 47... Rg5 {[%clk 0:00:22]} 48. b5 {[%clk
0:00:15.6]} 48... h5 {[%clk 0:00:21.3]} 49. Ke4 {[%clk 0:00:14.7]} 49... h4
{[%clk 0:00:19]} 50. Kxf4 {[%clk 0:00:14.3]} 50... Rg1 {[%clk 0:00:14]} 51. Kxe3
{[%clk 0:00:13.7]} 51... h3 {[%clk 0:00:13]} 52. Rh2 {[%clk 0:00:13.2]} 52...
Rg3 {[%clk 0:00:12.1]} 53. Kf4 {[%clk 0:00:12.3]} 53... Rg2 {[%clk 0:00:09.5]}
54. Rxh3+ {[%clk 0:00:12]} 54... Kg6 {[%clk 0:00:10.4]} 55. Rg3+ {[%clk
0:00:12.2]} 55... Kf6 {[%clk 0:00:08.9]} 56. Rxg2 {[%clk 0:00:10.9]} 56... g5+
{[%clk 0:00:09.8]} 57. Rxg5 {[%clk 0:00:10]} 57... Ke6 {[%clk 0:00:10.7]} 58.
Rb6+ {[%clk 0:00:08.7]} 58... Kd7 {[%clk 0:00:10.1]} 59. Rh6 {[%clk 0:00:08.3]}
59... Kc8 {[%clk 0:00:11]} 60. Rg7 {[%clk 0:00:08.2]} 60... Kd8 {[%clk
0:00:09.6]} 61. Rh8# {[%clk 0:00:09.1]} 1-0